bitfinex-derivatives/quotes_ETHF0:USTF0_20241017
["timestamp","ask_amount","ask_price","bid_price","bid_amount"]
[1729172128219,0.4146,2602.3,2601.9,4.16886]
[1729172128421,0.79897,2602.3,2602.2,0.38438]
[1729172128824,0.4146,2602.3,2602.2,0.38438]
[1729172129523,0.79897,2602.3,2602.2,0.38438]
[1729172130924,0.38441,2602.1,2601.8,0.4005]
[1729172131117,0.4146,2602.3,2601.3,2.77858952]
[1729172131118,3.69,2601.9,2601.3,2.77858952]
[1729172131321,0.38446,2601.7,2601.5,0.38448]
[1729172131518,0.38446,2601.7,2601.3,3.17498952]
[1729172131519,3.2078,2601.6,2601.3,3.17498952]
[1729172131920,0.38446,2601.7,2601.6,0.38446]
[1729172132328,0.38448,2601.6,2601.5,0.38447]
[1729172132522,3.59228,2601.6,2601.5,0.38447]
[1729172132728,0.4062,2601.8,2601.3,2.77858952]
[1729172132929,0.4062,2601.8,2601.3,3.16309952]
[1729172132930,0.3845,2601.4,2601.3,3.16309952]
[1729172133135,0.3845,2601.4,2601.3,2.77858952]
[1729172133435,7.2823,2601.5,2601.3,3.16309952]
[1729172133630,0.3845,2601.4,2601.3,2.77858952]
[1729172133828,7.304,2601.8,2601.5,0.38448]
[1729172134031,3.2078,2601.5,2601.4,0.3845]
[1729172134341,0.4062,2601.8,2601.6,0.38447]
[1729172134635,0.38447,2601.6,2601.4,0.38449]
[1729172134838,0.38447,2601.6,2601.3,2.77858952]
[1729172135137,0.3845,2601.4,2601.3,2.77858952]
[1729172135429,3.5923,2601.4,2601.3,2.77858952]
[1729172135733,7.4502,2601.4,2601.3,2.77858952]
[1729172135932,7.8347,2601.4,2601.3,2.77858952]
[1729172136921,7.8347,2601.4,2600.6,1.36964]
[1729172136922,13.4502,2601.4,2600.6,1.36964]
[1729172137130,3.2078,2601.1,2600.7,1.35789]
[1729172137336,3.2078,2601.1,2601.0,0.38456]
[1729172137337,3.59234,2601.1,2601.0,0.38456]
[1729172137624,3.2078,2601.1,2601.0,0.38456]
[1729172138423,0.38453,2601.2,2601.1,0.38453]
[1729172138628,3.2078,2601.2,2601.1,0.38453]
[1729172138835,7.0526,2601.2,2601.1,0.38453]
[1729172139024,7.43713,2601.2,2601.1,0.38453]
[1729172139229,7.43714,2601.2,2601.1,0.38454]
[1729172139424,3.2078,2601.2,2601.1,0.38454]
[1729172139631,0.78532,2601.3,2601.2,0.38453]
[1729172139840,0.78532,2601.3,2600.8,0.96146]
[1729172140029,0.4008,2601.3,2601.2,0.38453]
[1729172140332,0.3984,2601.4,2601.3,0.38451]
[1729172140544,0.8157,2601.4,2601.3,0.38451]
[1729172140833,3.2078,2601.5,2601.4,0.3845]
[1729172141423,0.3845,2601.4,2601.3,0.3845]
[1729172141628,0.3845,2601.4,2601.3,0.38451]
[1729172141826,3.2078,2601.5,2601.2,0.3969]
[1729172142229,3.2078,2601.5,2600.6,3.4081]
[1729172142438,3.2078,2601.5,2601.4,0.3845]
[1729172143742,3.59229,2601.5,2601.4,0.3845]
[1729172144331,3.8338,2601.8,2601.4,0.3845]
[1729172144332,3.6243,2601.8,2601.7,0.38446]
[1729172144834,3.6243,2601.8,2601.5,0.4179]
[1729172144835,0.38446,2601.7,2601.6,0.38446]
[1729172145044,0.38447,2601.6,2601.5,0.4179]
[1729172145340,0.38446,2601.7,2601.4,0.38449]
[1729172145545,0.38448,2601.5,2601.4,0.38449]
[1729172145835,0.38448,2601.6,2601.5,0.38448]
[1729172146033,6.6243,2601.8,2601.7,0.38446]
[1729172146034,7.00875,2601.8,2601.7,0.38446]
[1729172146233,7.00875,2601.8,2601.3,0.4179]
[1729172146234,0.38446,2601.7,2601.6,0.38446]
[1729172146434,0.38449,2601.6,2601.5,0.38448]
[1729172146636,3.6243,2601.8,2601.3,0.4179]
[1729172146837,0.38449,2601.5,2601.4,0.38449]
[1729172147338,0.38448,2601.6,2601.5,0.38448]
[1729172147538,0.3845,2601.4,2601.3,0.8024]
[1729172147841,0.96115,2601.7,2601.3,0.4179]
[1729172148143,0.3845,2601.4,2601.3,0.8024]
[1729172148442,0.38447,2601.7,2601.6,0.38446]
[1729172148642,0.3845,2601.5,2601.4,0.38449]
[1729172148843,0.3845,2601.4,2601.3,0.8024]
[1729172149545,0.3845,2601.4,2601.3,0.4179]
[1729172149942,8.23197,2601.4,2600.9,0.4088]
[1729172150144,3.0,2601.1,2600.9,0.4088]
[1729172150347,3.0,2601.1,2600.4,0.96162]
[1729172150645,6.2078,2600.9,2600.2,0.4125]
[1729172150940,0.4267,2600.8,2600.2,0.4125]
[1729172151142,4.16946,2600.3,2599.8,0.38473]
[1729172151341,3.2078,2599.9,2599.7,0.38474]
[1729172151738,3.2078,2599.9,2599.0,3.8365]
[1729172151933,3.2078,2599.6,2599.5,0.38477]
[1729172152139,3.0,2599.8,2599.0,3.8365]
[1729172152338,0.8315,2600.2,2599.3,0.3848]
[1729172152339,6.59257,2599.6,2599.3,0.3848]
[1729172152543,6.2078,2599.6,2599.0,0.8365]
[1729172152838,3.2078,2599.6,2599.0,0.8365]
[1729172153036,3.2078,2599.6,2599.4,0.38479]
[1729172153233,3.2078,2599.6,2599.0,0.8365]
[1729172153234,3.2078,2599.6,2599.0,1.37464]
[1729172153436,3.2078,2599.6,2599.5,0.38478]
[1729172153644,2.63029658,2599.6,2599.5,0.38478]
[1729172154641,2.63029658,2599.6,2599.0,0.4125]
[1729172154846,3.01507658,2599.6,2599.2,0.38482]
[1729172155046,0.38481,2599.4,2599.0,0.79735]
[1729172155344,6.33029658,2599.6,2598.2,0.9962279]
[1729172155345,3.7,2599.1,2598.2,0.9962279]
[1729172155536,3.2078,2598.6,2598.2,0.3889]
[1729172155741,3.2078,2598.7,2598.2,0.3889]
[1729172155936,3.7,2599.3,2598.3,0.9624]
[1729172156136,3.7,2598.4,2598.2,3.5967]
[1729172156445,1.38928006,2598.4,2598.3,7.44156]
[1729172156839,3.2078,2598.8,2598.3,9.8488]
[1729172157042,0.28710814,2600.0,2599.4,0.38478]
[1729172157043,3.59254,2599.8,2599.4,0.38478]
[1729172157244,3.7,2599.6,2599.1,3.2078]
[1729172157439,3.7,2599.6,2599.0,0.38485]
[1729172157440,3.7,2599.1,2599.0,0.38485]
[1729172157754,3.7,2599.1,2598.4,0.96237]
[1729172157755,3.7,2599.3,2599.1,0.38483]
[1729172157949,3.7,2599.3,2599.0,0.38485]
[1729172158140,6.9078,2599.3,2598.6,3.2078]
[1729172158346,6.9078,2599.3,2598.4,0.3964]
[1729172158347,6.9078,2599.0,2598.4,0.3964]
[1729172158536,6.9078,2599.0,2598.9,0.38487]
[1729172158737,6.9078,2599.0,2598.8,0.38488]
[1729172158946,6.9078,2599.0,2598.4,0.3964]
[1729172158947,3.7,2599.0,2598.6,0.38491]
[1729172159137,4.08486,2599.0,2598.5,0.38492]
[1729172159337,3.7,2598.8,2598.5,0.38492]
[1729172159536,6.9078,2598.8,2598.5,0.38492]
[1729172160440,3.7,2598.8,2598.6,0.3849]
[1729172160636,3.7,2598.8,2598.2,0.3889]
[1729172160637,3.2078,2598.7,2598.2,0.3889]
[1729172160837,3.2078,2598.7,2598.3,0.38495]
[1729172160838,3.7,2598.5,2598.3,0.38495]
[1729172161038,3.7,2598.5,2597.7,4.17039]
[1729172161039,3.2078,2598.4,2597.7,3.2078]
[1729172161240,3.59275,2598.4,2598.1,0.38498]
[1729172161443,3.59275,2598.4,2598.3,0.38496]
[1729172161444,3.2078,2598.4,2598.3,0.38496]
[1729172162040,3.7,2598.5,2598.4,0.38494]
[1729172162243,3.7,2598.7,2598.0,3.2078]
[1729172162444,3.2078,2599.0,2598.9,0.38487]
[1729172162845,13.0558,2599.0,2598.4,0.8106]
[1729172163046,3.2078,2599.0,2598.9,0.38487]
[1729172163638,6.9078,2599.0,2598.1,0.96248]
[1729172163838,6.9078,2599.0,2598.9,0.38487]
[1729172164039,6.9078,2599.0,2598.8,0.38488]
[1729172164249,6.9078,2599.0,2598.4,0.96237]
[1729172164250,6.9078,2599.0,2598.9,0.38487]
[1729172164449,6.9078,2599.0,2597.4,3.2078]
[1729172164650,3.2078,2598.5,2597.9,0.96255]
[1729172164850,3.2078,2598.5,2597.3,1.92555]
[1729172164851,7.29281,2598.0,2597.7,0.38504]
[1729172165151,7.29281,2598.0,2597.2,0.96279]
[1729172165152,6.9078,2598.0,2597.9,0.38502]
[1729172165649,3.2078,2598.0,2597.9,0.38502]
[1729172166349,3.2078,2598.1,2598.0,0.385]
[1729172166957,3.7,2598.2,2597.6,0.4021]
[1729172167252,3.2078,2598.1,2597.6,0.4021]
[1729172167452,0.7869,2598.4,2598.1,0.38497]
[1729172167453,4.37965,2598.4,2598.1,0.38497]
[1729172167644,7.6947,2598.4,2598.3,0.38496]
[1729172167850,3.9947,2598.4,2598.3,0.38496]
[1729172168046,0.394,2598.4,2598.3,0.38496]
[1729172168847,3.6018,2598.4,2598.3,0.38496]
[1729172169046,3.2078,2598.4,2598.3,0.38496]
[1729172169247,0.4085,2599.0,2598.6,0.38491]
[1729172169248,3.2078,2598.7,2598.6,0.38491]
[1729172169448,4.1062,2598.9,2598.3,0.38496]
[1729172169657,0.4062,2598.9,2598.4,0.4211]
[1729172169860,3.7,2598.8,2598.4,0.4211]
[1729172170255,3.7,2598.8,2598.7,0.3849]
[1729172170449,3.7,2598.8,2598.4,0.4211]
[1729172170450,6.9078,2599.0,2598.5,3.2078]
[1729172170751,3.7,2598.8,2598.7,0.38489]
[1729172171458,0.3849,2598.7,2598.4,0.4211]
[1729172171657,0.3849,2598.7,2598.5,0.38492]
[1729172171658,0.38491,2598.7,2598.5,0.38492]
[1729172171854,0.38493,2598.5,2598.3,0.38495]
[1729172172051,3.7,2598.5,2598.1,3.6326]
[1729172172350,3.7,2598.5,2598.1,0.4248]
[1729172172952,0.38495,2598.4,2598.1,0.4248]
[1729172173147,0.38497,2598.2,2598.1,0.38498]
[1729172173347,0.38501,2598.0,2597.7,0.4039]
[1729172173655,0.38506,2597.6,2597.3,0.9962279]
[1729172173848,0.38506,2597.7,2597.4,0.38509]
[1729172174049,3.6029,2597.9,2597.3,0.9962279]
[1729172174250,0.38505,2597.7,2597.6,0.38506]
[1729172174452,0.38503,2597.8,2597.3,0.9962279]
[1729172174651,3.6029,2597.9,2597.5,0.38507]
[1729172175052,3.7,2597.8,2597.3,0.9962279]
[1729172175255,3.7,2597.5,2597.2,1.49434185]
[1729172175462,7.29291,2597.3,2597.2,1.49434185]
[1729172175759,6.9078,2597.3,2597.2,0.38512]
[1729172175964,11.14331,2597.3,2597.1,0.38514]
[1729172176161,11.14331,2597.3,2596.6,3.68894236]
[1729172176162,0.38515,2597.1,2596.9,0.38516]
[1729172176363,6.9078,2597.3,2596.7,0.3939]
[1729172176559,6.9078,2597.3,2597.2,0.38512]
[1729172176749,6.9078,2597.3,2596.7,3.6017]
[1729172176956,6.9078,2597.3,2596.7,0.3939]
[1729172177149,6.9078,2597.3,2597.1,0.38513]
[1729172177454,0.38514,2597.1,2596.9,0.38515]
[1729172177652,0.4177,2597.2,2596.6,2.72593236]
[1729172177853,0.4177,2597.2,2596.6,0.38521]
[1729172177854,0.38517,2596.9,2596.6,0.38521]
[1729172178049,0.38518,2596.8,2596.6,0.3852]
[1729172178253,0.38519,2596.8,2596.3,0.96314]
[1729172178561,3.2078,2597.0,2596.3,3.2078]
[1729172178765,0.3852,2596.7,2596.2,0.818]
[1729172178963,0.38519,2596.8,2596.6,0.38521]
[1729172179156,0.3852,2596.7,2596.5,0.38522]
[1729172179466,3.2078,2597.0,2595.4,1.98974227]
[1729172179467,0.96313,2596.4,2595.4,1.98974227]
[1729172179659,6.9078,2596.0,2595.6,0.38535]
[1729172179857,6.9078,2596.0,2595.4,1.98974227]
[1729172180060,0.38536,2595.6,2595.4,1.98974227]
[1729172180275,7.29315,2595.7,2595.5,0.2083067]
[1729172180457,3.8528,2595.6,2595.4,1.98974227]
[1729172180854,3.8528,2595.5,2595.4,1.98974227]
[1729172181366,9.8528,2595.5,2595.4,1.98974227]
[1729172181561,9.8528,2595.5,2595.2,0.0049808]
[1729172181751,4.23818,2595.5,2595.2,0.0049808]
[1729172181954,0.4114,2595.6,2595.2,0.0049808]
[1729172182167,3.7,2595.4,2595.2,0.0049808]
[1729172182461,0.3854,2595.3,2595.2,0.0049808]
[1729172182762,45.0382,2595.3,2595.2,0.0049808]
[1729172182955,44.6528,2595.3,2595.2,0.3904008]
[1729172183160,3.8528,2595.3,2595.2,0.3904008]
[1729172183360,3.8528,2595.3,2595.2,0.0049808]
[1729172183763,10.2382,2595.3,2595.2,0.0049808]
[1729172184267,9.8528,2595.3,2595.2,0.0049808]
[1729172184453,10.2382,2595.3,2595.2,0.0049808]
[1729172185163,51.0382,2595.3,2595.2,0.0049808]
[1729172185364,48.536,2595.3,2594.5,3.2078]
[1729172185560,6.9078,2594.6,2594.3,0.00469844]
[1729172186163,6.9078,2594.6,2594.4,0.38553]
[1729172186464,3.2078,2594.6,2594.5,0.38552]
[1729172186671,0.38549,2594.7,2594.4,0.38553]
[1729172186867,3.7,2594.8,2594.3,2.73259426]
[1729172187059,0.3855,2594.7,2594.4,3.11342582]
[1729172187264,3.7,2594.8,2594.4,2.72789582]
[1729172187464,0.3855,2594.7,2594.4,3.11342582]
[1729172187665,4.08548,2594.8,2594.5,3.11340582]
[1729172187869,3.2078,2594.6,2594.5,2.72789582]
[1729172188065,3.2078,2594.6,2594.3,0.00469844]
[1729172188066,3.2078,2594.7,2594.3,0.00469844]
[1729172188365,0.38544,2595.1,2594.8,0.38547]
[1729172188568,3.7,2595.2,2594.8,0.38547]
[1729172188569,3.7,2595.2,2594.8,2.72789582]
[1729172188766,3.7,2595.2,2595.0,2.72789582]
[1729172189070,3.7,2595.2,2594.3,0.96856844]
[1729172189071,0.38545,2595.0,2594.9,2.72789582]
[1729172189370,0.3855,2594.7,2594.5,2.72789582]
[1729172189559,3.2078,2594.6,2594.5,2.72789582]
[1729172189761,3.2078,2594.6,2594.5,3.11341582]
[1729172189973,9.2078,2594.6,2594.3,0.00469844]
[1729172190169,0.38553,2594.5,2594.3,2.73259426]
[1729172190364,6.9078,2594.6,2594.3,2.73259426]
[1729172190766,0.38554,2594.4,2594.3,0.00469844]
[1729172190970,9.2078,2594.6,2594.3,0.00469844]
[1729172191161,3.2078,2594.6,2594.5,2.72789582]
[1729172191363,3.2078,2594.6,2594.3,2.73259426]
[1729172191364,0.38554,2594.4,2594.3,2.73259426]
[1729172191569,4.08554,2594.4,2594.3,0.00469844]
[1729172191865,3.7,2594.4,2594.3,0.00469844]
[1729172192062,0.38553,2594.5,2594.3,2.73259426]
[1729172192270,3.2078,2594.6,2594.3,3.11814426]
[1729172192474,3.7,2594.9,2594.5,2.72789582]
[1729172192671,3.7,2594.9,2594.3,0.00469844]
[1729172192672,0.38551,2594.7,2594.6,2.72789582]
[1729172193070,0.38549,2594.7,2594.6,2.72789582]
[1729172193265,9.7,2594.7,2594.3,0.00469844]
[1729172193465,7.29334,2594.4,2594.3,2.73259426]
[1729172193977,7.29334,2594.4,2594.3,0.00469844]
[1729172197691,3.2078,2594.4,2594.3,0.39024844]
[1729172197902,3.7,2594.7,2594.6,0.38551]
[1729172198188,44.0078,2595.9,2594.7,0.96373]
[1729172198390,3.7,2595.7,2595.6,0.38535]
[1729172198589,3.7,2595.7,2594.9,3.2078]
[1729172198791,3.2078,2596.2,2595.6,2.72789582]
[1729172198990,3.2078,2596.2,2596.0,2.72789582]
[1729172199189,3.7,2596.1,2596.0,2.72789582]
[1729172199695,4.08528,2596.1,2596.0,2.72789582]
[1729172199989,44.88528,2596.1,2596.0,2.72789582]
[1729172200191,44.5,2596.1,2596.0,2.72789582]
[1729172200387,44.88528,2596.1,2596.0,2.72789582]
[1729172200588,44.5,2596.1,2596.0,3.11319582]
[1729172200786,13.552,2596.1,2595.1,3.2078]
[1729172200984,3.7,2595.7,2595.4,2.72789582]
[1729172201188,3.7,2595.7,2595.6,2.72789582]
[1729172201397,0.38536,2595.6,2595.1,3.2078]
[1729172201691,3.7,2595.7,2595.4,2.72789582]
[1729172201899,0.38536,2595.6,2595.4,2.72789582]
[1729172202088,3.7,2595.7,2595.6,2.72789582]
[1729172202291,4.08534,2595.7,2595.6,2.72789582]
[1729172202487,3.7,2595.7,2595.6,3.11325582]
[1729172202687,40.8,2595.7,2595.6,3.11325582]
[1729172203100,7.29312,2595.9,2595.7,0.38533]
[1729172203400,6.9078,2595.9,2595.8,2.72789582]
[1729172203585,7.29311,2595.9,2595.8,2.72789582]
[1729172204488,7.29311,2595.9,2595.2,0.3873]
[1729172204489,0.38536,2595.6,2595.4,0.38538]
[1729172204695,6.9078,2595.9,2595.6,3.11324582]
[1729172204993,6.9078,2595.9,2595.6,2.72789582]
[1729172205197,0.38534,2595.7,2595.6,2.72789582]
[1729172205399,0.38534,2595.8,2595.2,0.3873]
[1729172205598,6.9078,2595.9,2595.8,2.72789582]
[1729172205789,3.2078,2595.9,2595.8,2.72789582]
[1729172205995,3.2078,2595.9,2595.8,3.11322582]
[1729172206193,3.7,2596.1,2595.8,2.72789582]
[1729172206389,4.08528,2596.1,2596.0,2.72789582]
[1729172206595,0.38532,2595.9,2595.8,2.72789582]
[1729172206797,0.38531,2596.0,2595.8,0.38533]
[1729172207099,3.59311,2595.9,2595.8,2.72789582]
[1729172207295,0.38531,2595.9,2595.8,2.72789582]
[1729172207693,9.2078,2595.9,2595.2,0.3873]
[1729172207889,4.08533,2595.8,2595.7,2.72789582]
[1729172209295,0.38533,2595.8,2595.7,2.72789582]
[1729172209496,4.08533,2595.8,2595.7,2.72789582]
[1729172209996,44.88533,2595.8,2595.7,2.72789582]
[1729172210192,44.5,2595.8,2595.4,0.38539]
[1729172210406,44.5,2595.8,2595.6,2.72789582]
[1729172210706,0.38534,2595.7,2595.6,2.72789582]
[1729172211692,0.38532,2595.9,2595.8,0.38533]
[1729172211901,0.38532,2595.9,2595.8,3.11322582]
[1729172212103,0.38532,2595.9,2595.8,2.72789582]
[1729172212303,0.38533,2595.8,2595.7,0.3858]
[1729172212507,0.38533,2595.8,2595.7,3.11369582]
[1729172213000,3.7,2596.0,2595.7,3.11369582]
[1729172213202,4.0853,2596.0,2595.9,2.72789582]
[1729172215009,3.7,2596.0,2595.9,2.72789582]
[1729172215309,3.7,2596.0,2595.9,3.11320582]
[1729172215507,4.0853,2596.0,2595.9,2.72789582]
[1729172216699,4.0853,2596.0,2595.7,0.77114]
[1729172216700,0.38533,2595.8,2595.7,0.3858]
[1729172216901,0.38533,2595.8,2595.7,3.11369582]
[1729172217704,0.38533,2595.8,2595.7,3.49903582]
[1729172217911,0.38539,2595.5,2594.8,3.2078]
[1729172218103,0.38534,2595.7,2595.6,2.72789582]
[1729172219415,0.38534,2595.7,2595.6,3.11325582]
[1729172219711,0.38534,2595.7,2595.6,2.72789582]
[1729172219903,3.39534,2595.7,2595.6,2.72789582]
[1729172220702,3.39534,2595.7,2595.6,3.11325582]
[1729172221019,9.01,2595.7,2595.0,0.8065]
[1729172221209,3.39542,2595.2,2595.1,0.38543]
[1729172221523,3.2078,2595.3,2595.2,0.38542]
[1729172221809,3.2078,2595.3,2595.2,3.11331582]
[1729172222403,3.01,2595.4,2595.2,2.72789582]
[1729172222603,3.01,2595.7,2595.3,2.72789582]
[1729172222805,3.39535,2595.7,2595.6,0.38536]
[1729172223008,3.39535,2595.7,2595.3,0.38539]
[1729172223009,0.38539,2595.4,2595.3,0.38539]
[1729172223306,3.01,2595.7,2595.3,2.72789582]
[1729172223502,3.01,2595.7,2595.6,2.72789582]
[1729172223503,3.39534,2595.7,2595.6,2.72789582]
[1729172223707,3.2078,2595.8,2595.6,2.72789582]
[1729172223910,3.01,2595.7,2595.0,3.2078]
[1729172224109,3.39541,2595.3,2595.2,0.38542]
[1729172224306,0.38543,2595.1,2595.0,0.3899]
[1729172224508,3.39543,2595.1,2595.0,0.3899]
[1729172224709,4.17139,2595.2,2594.6,3.6179]
[1729172224906,0.4256,2595.4,2595.0,2.72789582]
[1729172224907,3.01,2595.3,2595.0,2.72789582]
[1729172225110,0.38543,2595.1,2595.0,3.11333582]
[1729172225306,41.18543,2595.1,2595.0,2.72789582]
[1729172225509,0.4256,2595.4,2595.2,0.38541]
[1729172225708,0.81099,2595.4,2595.3,2.72789582]
[1729172225902,7.02879,2595.4,2595.3,2.72789582]
[1729172226104,6.2178,2595.4,2595.3,2.72789582]
[1729172226414,3.2078,2595.7,2595.6,0.38536]
[1729172226605,3.59314,2595.7,2595.6,0.38536]
[1729172226806,3.59314,2595.7,2595.6,2.72789582]
[1729172227015,3.59314,2595.7,2595.6,3.11325582]
[1729172227016,3.2078,2595.7,2595.6,3.11325582]
[1729172228015,41.18528,2596.2,2595.9,0.38531]
[1729172228316,6.2178,2596.5,2596.0,0.4152]
[1729172228509,0.38524,2596.4,2596.3,0.38525]
[1729172228701,6.60304,2596.5,2596.4,2.72789582]
[1729172228907,3.2078,2596.5,2596.4,2.72789582]
[1729172229103,3.2078,2596.5,2596.4,3.11313582]
[1729172229513,0.3963,2597.5,2596.4,3.11313582]
[1729172229514,0.38519,2596.8,2596.4,2.72789582]
[1729172229822,0.38522,2596.6,2596.5,0.38522]
[1729172230114,3.7,2597.0,2596.3,0.96313]
[1729172230307,0.38516,2597.0,2596.9,2.72789582]
[1729172230713,40.8,2597.1,2596.9,3.11306582]
[1729172230911,40.8,2597.1,2596.4,3.2078]
[1729172230912,41.18514,2597.1,2597.0,2.72789582]
[1729172231122,0.96292,2596.9,2595.4,6.9078]
[1729172231413,0.38523,2596.5,2596.3,0.38525]
[1729172231617,6.9078,2596.6,2596.3,0.38525]
[1729172231812,7.29301,2596.6,2596.5,2.72789582]
[1729172232715,3.59301,2596.6,2596.5,2.72789582]
[1729172233107,3.2078,2596.6,2596.5,3.11312582]
[1729172233505,47.7078,2597.1,2596.5,8.72789582]
[1729172233711,3.59294,2597.1,2597.0,2.72789582]
[1729172233917,3.2078,2597.6,2597.0,2.72789582]
[1729172234127,0.38506,2597.6,2597.4,0.38509]
[1729172234415,4.08503,2597.9,2597.6,0.38505]
[1729172234716,4.08503,2597.9,2597.8,2.72789582]
[1729172234717,0.38502,2597.9,2597.8,2.72789582]
[1729172234920,40.8,2598.1,2597.8,2.72789582]
[1729172235222,44.39279,2598.1,2598.0,2.72789582]
[1729172235415,53.7078,2598.1,2597.5,0.4118]
[1729172235627,47.7078,2598.1,2597.8,2.72789582]
[1729172235830,0.38502,2597.9,2597.8,2.72789582]
[1729172236617,0.38511,2597.3,2597.1,0.38513]
[1729172236823,3.7,2597.9,2597.5,2.72789582]
[1729172237023,3.7,2597.9,2597.3,0.3851]
[1729172237324,0.38503,2597.8,2597.7,2.72789582]
[1729172238026,4.08503,2597.8,2597.7,2.72789582]
[1729172238209,0.38503,2597.8,2597.7,2.72789582]
[1729172239010,0.38503,2597.9,2597.7,2.72789582]
[1729172239215,0.38503,2597.9,2597.7,0.38504]
[1729172239415,0.38503,2597.9,2597.2,1.37799]
[1729172239416,3.2078,2598.0,2597.8,2.72789582]
[1729172239618,3.59281,2598.0,2597.9,2.72789582]
[1729172241034,7.29281,2598.0,2597.9,2.72789582]
[1729172241827,3.59281,2598.0,2597.9,2.72789582]
[1729172242222,7.29281,2598.0,2597.9,2.72789582]
[1729172242625,3.59281,2598.0,2597.9,2.72789582]
[1729172242821,44.39281,2598.0,2597.9,2.72789582]
[1729172243523,4.101,2598.3,2597.9,2.72789582]
[1729172243524,3.2078,2598.3,2598.2,0.38497]
[1729172243718,3.2078,2598.3,2598.2,3.11286582]
[1729172243917,0.4018,2599.0,2598.2,3.11286582]
[1729172243918,0.38489,2598.8,2598.6,0.38491]
[1729172244116,0.38489,2598.8,2598.7,2.72789582]
[1729172244324,0.38488,2598.9,2598.7,3.13389582]
[1729172244516,0.38488,2598.9,2598.8,2.72789582]
[1729172244921,3.59268,2598.9,2598.8,2.72789582]
[1729172245129,12.9078,2598.9,2598.1,3.2078]
[1729172245329,6.9078,2598.3,2597.7,0.3946]
[1729172245516,0.38497,2598.2,2598.1,2.72789582]
[1729172245827,7.29277,2598.2,2598.1,2.72789582]
[1729172246729,0.38503,2597.8,2597.7,0.3946]
[1729172246919,3.59283,2597.8,2597.7,0.3946]
[1729172247120,3.59283,2597.8,2597.7,3.12249582]
[1729172247529,3.59283,2597.8,2597.7,2.72789582]
[1729172247832,7.29283,2597.8,2597.7,2.72789582]
[1729172248429,3.59283,2597.8,2597.7,2.72789582]
[1729172248621,3.2078,2597.8,2597.7,2.72789582]
[1729172248826,3.7,2598.1,2597.7,2.72789582]
[1729172249033,4.08499,2598.1,2598.0,2.72789582]
[1729172250032,41.18499,2598.1,2598.0,2.72789582]
[1729172251021,3.2078,2598.2,2598.0,2.72789582]
[1729172251229,3.2078,2598.2,2598.1,2.72789582]
[1729172251426,3.59277,2598.2,2598.1,2.72789582]
[1729172256334,3.2078,2598.2,2598.1,2.72789582]
[1729172256532,3.2078,2598.2,2598.1,9.11288582]
[1729172256836,1.744,2599.2,2598.1,9.11288582]
[1729172256837,0.3854,2599.1,2598.1,16.7566]
[1729172257030,0.3854,2599.1,2598.8,0.38488]
[1729172257031,0.38487,2598.9,2598.8,0.38488]
[1729172257333,0.96196,2599.5,2598.7,0.4149]
[1729172257533,7.86974,2599.6,2599.0,3.2078]
[1729172257733,0.38484,2599.1,2599.0,3.2078]
[1729172258327,3.7,2599.3,2598.7,0.4149]
[1729172258532,0.4046,2599.2,2598.7,0.79979]
[1729172258726,0.38487,2599.0,2598.9,3.2078]
[1729172259731,0.4046,2599.2,2598.7,0.4149]
[1729172259732,0.38488,2598.8,2598.7,0.4149]
[1729172260433,0.38488,2598.9,2598.7,4.64779]
[1729172260635,0.38488,2598.9,2598.8,3.6113]
[1729172260831,0.4046,2599.2,2598.8,7.84418]
[1729172261032,0.38487,2598.9,2598.8,3.6113]
[1729172261537,0.4046,2599.2,2598.8,7.4593]
[1729172261741,0.38487,2598.9,2598.8,3.99618]
[1729172262037,0.38483,2599.2,2599.1,0.38484]
[1729172262236,0.38484,2599.2,2599.1,3.2078]
[1729172263839,0.77954,2599.2,2599.1,3.2078]
[1729172264135,0.77954,2599.2,2598.8,0.4035]
[1729172264333,0.38487,2598.9,2598.8,0.4035]
[1729172264534,0.38488,2598.8,2598.7,0.4149]
[1729172266934,0.38488,2598.8,2598.7,0.7998]
[1729172267244,0.38484,2599.2,2598.7,0.7998]
[1729172267245,0.96207,2599.2,2598.7,0.4149]
[1729172267429,0.38488,2598.9,2598.8,0.38488]
[1729172267636,0.38488,2598.9,2598.8,3.59268]
[1729172267834,0.38488,2598.9,2598.8,4.01878]
[1729172268033,0.38488,2598.9,2598.8,3.6339]
[1729172269840,0.38488,2598.9,2598.8,4.01878]
[1729172270038,4.66205,2599.3,2598.8,3.6339]
[1729172270235,0.38487,2598.9,2598.8,4.01878]
[1729172270436,0.38484,2599.1,2599.0,0.38485]
[1729172270648,0.38486,2599.0,2598.9,0.38486]
[1729172271033,40.8,2599.5,2598.8,3.6339]
[1729172271240,0.3848,2599.4,2599.2,3.2078]
[1729172271551,0.38481,2599.3,2599.2,3.2078]
[1729172272434,41.76198,2599.5,2598.9,3.2078]
[1729172272635,0.38485,2599.0,2598.9,3.59266]
[1729172273542,41.76198,2599.5,2598.9,3.59265]
[1729172273543,0.38485,2599.1,2598.9,3.59265]
[1729172273752,0.38485,2599.1,2599.0,0.38485]
[1729172273944,0.38484,2599.2,2599.1,0.38484]
[1729172274247,0.38484,2599.1,2599.0,0.38485]
[1729172274445,0.96204,2599.3,2598.9,3.2078]
[1729172274745,0.38485,2599.0,2598.9,3.2078]
[1729172275253,0.38485,2599.0,2598.9,3.59267]
[1729172275440,0.38485,2599.1,2599.0,0.38484]
[1729172275635,0.96203,2599.3,2598.9,3.59267]
[1729172275636,0.38485,2599.0,2598.9,3.59267]
[1729172276151,0.38485,2599.0,2598.9,7.44067]
[1729172276445,0.38485,2599.0,2598.9,7.0558]
[1729172276647,0.96203,2599.3,2598.9,3.2078]